bitfinex-derivatives/quotes_BTCF0:USTF0_20250222
["timestamp","ask_amount","ask_price","bid_price","bid_amount"]
[1740231050741,0.3203788,96814.0,96813.0,7e-08]
[1740231051941,0.28423894,96814.0,96800.0,0.1]
[1740231052142,0.2166466,96801.0,96800.0,0.1]
[1740231053843,0.3224866,96801.0,96800.0,0.1]
[1740231054747,1.8224866,96801.0,96800.0,0.1]
[1740231055150,1.8224866,96801.0,96800.0,0.103]
[1740231055355,1.8123666,96801.0,96800.0,0.103]
[1740231055654,1.86261408,96801.0,96800.0,0.103]
[1740231056054,1.87261408,96801.0,96800.0,0.103]
[1740231057558,1.87253408,96801.0,96800.0,0.103]
[1740231058946,1.7166466,96801.0,96800.0,0.103]
[1740231059151,1.8221666,96801.0,96800.0,0.103]
[1740231059859,1.8121666,96801.0,96800.0,0.103]
[1740231060153,1.8221666,96801.0,96800.0,0.103]
[1740231060349,1.8121666,96801.0,96800.0,0.103]
[1740231060954,1.7066466,96801.0,96800.0,0.103]
[1740231061556,1.7166466,96801.0,96800.0,0.103]
[1740231064361,1.7166466,96801.0,96800.0,1e-07]
[1740231065858,1.8220866,96801.0,96800.0,1e-07]
[1740231066263,1.8120866,96801.0,96800.0,1e-07]
[1740231066563,1.7066466,96801.0,96800.0,1e-07]
[1740231066759,1.8220066,96801.0,96800.0,1e-07]
[1740231068967,1.61536,96801.0,96788.0,0.0649]
[1740231069158,0.5774722,96789.0,96788.0,0.0649]
[1740231069358,0.6827922,96789.0,96788.0,0.0649]
[1740231069759,0.6827411,96789.0,96788.0,0.0649]
[1740231070160,2.1827411,96789.0,96788.0,0.0649]
[1740231071170,2.0774211,96789.0,96788.0,0.0649]
[1740231071470,2.1836611,96789.0,96788.0,0.0659]
[1740231071661,2.19376666,96789.0,96788.0,0.0659]
[1740231072568,2.19476666,96789.0,96788.0,0.0659]
[1740231076068,2.24502349,96789.0,96788.0,0.0659]
[1740231076371,2.55880239,96789.0,96750.0,0.3608]
[1740231076672,0.206717,96768.0,96767.0,0.0325]
[1740231076875,0.321917,96768.0,96767.0,0.0325]
[1740231077063,1.821917,96768.0,96767.0,0.0325]
[1740231077377,0.321917,96768.0,96767.0,0.0325]
[1740231077762,1.821957,96768.0,96767.0,0.0325]
[1740231077957,1.716717,96768.0,96767.0,0.0325]
[1740231078167,1.821917,96768.0,96767.0,0.0325]
[1740231081374,1.716717,96768.0,96767.0,0.0325]
[1740231081574,1.821757,96768.0,96767.0,0.0325]
[1740231082275,0.321757,96768.0,96767.0,0.0325]
[1740231087278,0.37201383,96768.0,96767.0,0.0325]
[1740231090274,1.87201383,96768.0,96767.0,0.0325]
[1740231092784,1.87145383,96768.0,96767.0,0.0325]
[1740231095387,1.821197,96768.0,96767.0,0.0325]
[1740231098586,2.181997,96768.0,96767.0,0.0325]
[1740231101189,2.171997,96768.0,96767.0,0.0325]
[1740231101490,2.181997,96768.0,96767.0,0.0325]
[1740231102385,0.2067363,96759.0,96758.0,0.0621]
[1740231102582,0.6814563,96759.0,96758.0,0.0621]
[1740231103085,2.1814563,96759.0,96758.0,0.0621]
[1740231106283,0.2067683,96744.0,96743.0,0.00155049]
[1740231106590,0.2167683,96744.0,96743.0,0.00155049]
[1740231106889,0.2167683,96744.0,96743.0,0.20832099]
[1740231107491,0.2177683,96744.0,96743.0,0.00155049]
[1740231108297,0.2187683,96744.0,96743.0,0.00155049]
[1740231109398,1.7187683,96744.0,96743.0,0.00155049]
[1740231110489,1.7237683,96744.0,96743.0,0.00155049]
[1740231111397,1.7267683,96744.0,96743.0,0.00155049]
[1740231113688,1.8300083,96744.0,96743.0,0.00155049]
[1740231115488,1.94855105,96744.0,96743.0,0.00155049]
[1740231115789,1.88021105,96744.0,96743.0,0.00155049]
[1740231116190,2.24101105,96744.0,96743.0,0.00155049]
[1740231118290,2.23101105,96744.0,96743.0,0.00155049]
[1740231118697,2.24101105,96744.0,96743.0,0.00155049]
[1740231121706,2.24069105,96744.0,96743.0,0.00155049]
[1740231124311,2.12785105,96744.0,96743.0,0.00155049]
[1740231125218,2.13785105,96744.0,96743.0,0.00155049]
[1740231126019,2.24057105,96744.0,96743.0,0.00155049]
[1740231126513,2.1902883,96744.0,96743.0,0.00155049]
[1740231128109,2.34432,96744.0,96713.0,0.3608]
[1740231128309,0.2167812,96738.0,96725.0,0.0647]
[1740231128814,1.7477812,96738.0,96725.0,0.0647]
[1740231129412,1.7497812,96738.0,96725.0,0.0647]
[1740231130004,1.7527812,96738.0,96725.0,0.0647]
[1740231130720,1.91086788,96738.0,96725.0,0.0647]
[1740231139325,1.91086788,96738.0,96737.0,0.01017184]
[1740231140425,2.73018788,96738.0,96737.0,0.01017184]
[1740231140621,2.69918788,96738.0,96737.0,0.01017184]
[1740231141029,2.68918788,96738.0,96737.0,0.01017184]
[1740231141322,2.69918788,96738.0,96737.0,0.01017184]
[1740231141530,2.79170788,96738.0,96737.0,0.01017184]
[1740231142023,2.68918788,96738.0,96737.0,0.01017184]
[1740231142929,1.18918788,96738.0,96737.0,0.21695514]
[1740231143427,1.19918788,96738.0,96737.0,0.21695514]
[1740231145232,0.2068111,96726.0,96725.0,0.2585051]
[1740231145524,0.2168111,96726.0,96725.0,0.2585051]
[1740231145927,0.2168111,96726.0,96725.0,0.6193051]
[1740231146530,0.2168111,96726.0,96725.0,0.6828051]
[1740231147933,0.2068089,96725.0,96724.0,0.2372111]
[1740231148124,0.2168089,96725.0,96724.0,0.2372111]
[1740231149326,0.2168089,96725.0,96724.0,0.2985111]
[1740231149529,0.2168089,96725.0,96724.0,0.0917]
[1740231149927,0.2168089,96725.0,96724.0,0.2985111]
[1740231152525,0.2068089,96725.0,96724.0,0.2985111]
[1740231152725,0.2168089,96725.0,96724.0,0.2985111]
[1740231153033,0.2068089,96725.0,96724.0,0.2985111]
[1740231154020,0.2168089,96725.0,96724.0,0.2985111]
[1740231158932,0.2068089,96725.0,96724.0,0.2985111]
[1740231159232,0.2168089,96725.0,96724.0,0.2985111]
[1740231160137,0.2068089,96725.0,96724.0,0.2985111]
[1740231160341,0.2168089,96725.0,96724.0,0.2985111]
[1740231160636,0.2068089,96725.0,96724.0,0.2985111]
[1740231161133,0.2168089,96725.0,96724.0,0.2985111]
[1740231161637,0.2068089,96725.0,96724.0,0.2985111]
[1740231161837,0.41311559,96727.0,96726.0,0.2068068]
[1740231162027,0.42311559,96727.0,96726.0,0.2068068]
[1740231165440,0.31879629,96727.0,96726.0,0.2068068]
[1740231168935,0.2685106,96727.0,96726.0,0.2068068]
[1740231171745,0.2068089,96725.0,96724.0,0.3502115]
[1740231172045,0.2168089,96725.0,96724.0,0.2985088]
[1740231174035,1.7168089,96725.0,96724.0,0.2985088]
[1740231176035,0.2168089,96725.0,96724.0,0.2985088]
[1740231176850,0.2168089,96725.0,96724.0,0.2985111]
[1740231177043,0.2168089,96725.0,96724.0,0.0917]
[1740231177841,0.2168089,96725.0,96724.0,0.4525]
[1740231178245,0.2168089,96725.0,96724.0,0.0917]
[1740231178953,0.2168089,96725.0,96724.0,0.0304]
[1740231181259,0.2670971,96725.0,96724.0,0.0304]
[1740231187851,0.0602882,96725.0,96716.0,0.0645]
[1740231188056,0.2168261,96717.0,96716.0,0.0645]
[1740231188463,0.2168261,96717.0,96716.0,0.2713282]
[1740231189155,0.2168261,96717.0,96716.0,0.3023282]
[1740231189858,0.2168261,96717.0,96716.0,0.0955]
[1740231192546,0.2671143,96717.0,96716.0,0.0955]
[1740231194155,0.2068517,96705.0,96701.0,0.37128652]
[1740231194351,0.2168517,96705.0,96702.0,0.0324]
[1740231194551,1.7168517,96705.0,96702.0,0.2392577]
[1740231194751,1.7168517,96705.0,96702.0,0.0324]
[1740231194949,0.2168517,96705.0,96704.0,0.20840492]
[1740231195152,0.2168517,96705.0,96704.0,0.00155102]
[1740231196251,0.2178517,96705.0,96704.0,0.00155102]
[1740231196662,0.2178517,96705.0,96703.0,0.0644]
[1740231196663,0.2068539,96704.0,96703.0,0.0644]
[1740231196957,0.2168539,96704.0,96703.0,0.0644]
[1740231197550,0.3191339,96704.0,96703.0,0.0644]
[1740231197951,0.3211339,96704.0,96703.0,0.0644]
[1740231198551,0.33141515,96704.0,96703.0,0.0644]
[1740231199850,0.3211339,96704.0,96703.0,0.0644]
[1740231201959,0.3211339,96704.0,96703.0,0.271256]
[1740231202155,0.3211339,96704.0,96703.0,0.0644]
[1740231205359,1.8211339,96704.0,96703.0,0.0644]
[1740231209669,1.8211339,96704.0,96703.0,0.0319]
[1740231210258,1.502,96704.0,96703.0,0.0319]
[1740231210562,0.2088539,96704.0,96703.0,0.238756]
[1740231211067,0.002,96704.0,96703.0,0.238756]
[1740231211258,0.2188539,96704.0,96703.0,0.24927957]
[1740231211967,0.2188539,96704.0,96703.0,0.238756]
[1740231218875,0.2188539,96704.0,96703.0,0.0319]
[1740231219273,1.7188539,96704.0,96703.0,0.0319]
[1740231219773,1.7388539,96704.0,96703.0,0.0319]
[1740231220967,0.2585749,96702.0,96701.0,0.2068592]
[1740231221269,0.2068603,96701.0,96700.0,0.2319618]
[1740231221468,0.2168603,96701.0,96700.0,0.2319618]
[1740231221668,0.2168603,96701.0,96700.0,0.0251]
[1740231222771,0.2178603,96701.0,96700.0,0.0251]
[1740231223674,0.2188603,96701.0,96700.0,0.0251]
[1740231226971,0.5796603,96701.0,96700.0,0.0251]
[1740231228074,0.6107603,96701.0,96700.0,0.0251]
[1740231228684,0.5796603,96701.0,96700.0,0.0251]
[1740231229179,0.62995773,96701.0,96700.0,0.0251]
[1740231234087,0.74416518,96701.0,96700.0,0.0251]
[1740231235683,2.24416518,96701.0,96700.0,0.0251]
[1740231237784,2.12995773,96701.0,96700.0,0.0251]
[1740231252190,2.23175773,96701.0,96700.0,0.0251]
[1740231253389,2.34631424,96701.0,96700.0,0.0251]
[1740231261997,2.34531424,96701.0,96700.0,0.0251]
[1740231262299,2.24351424,96701.0,96700.0,0.0251]
[1740231262497,2.34699424,96701.0,96700.0,0.0251]
[1740231262700,2.34599424,96701.0,96700.0,0.0251]
[1740231266391,2.34599424,96701.0,96696.0,0.033]
[1740231266392,2.13913394,96701.0,96696.0,0.033]
[1740231266703,0.5776688,96697.0,96696.0,0.033]
[1740231268103,0.2068752,96694.0,96693.0,0.03]
[1740231268304,0.2168752,96694.0,96693.0,0.03]
[1740231269298,0.2178752,96694.0,96693.0,0.03]
[1740231270995,0.2188752,96694.0,96693.0,0.03]
[1740231271197,0.9404752,96694.0,96693.0,0.03]
[1740231272205,2.4404752,96694.0,96693.0,0.03]
[1740231273005,2.4304752,96694.0,96693.0,0.03]
[1740231273206,2.5441552,96694.0,96693.0,0.03]
[1740231274998,1.0441552,96694.0,96693.0,0.03]
[1740231275501,1.20900914,96694.0,96693.0,0.03]
[1740231276303,1.09532914,96694.0,96693.0,0.03]
[1740231276606,1.19888914,96694.0,96693.0,0.03]
[1740231277005,1.09532914,96694.0,96693.0,0.03]
[1740231279807,0.98077263,96694.0,96693.0,0.03]
[1740231282904,0.97977263,96694.0,96693.0,0.03]
[1740231283108,0.97877263,96694.0,96693.0,0.03]
[1740231284996,0.98877263,96694.0,96693.0,0.03]
[1740231287403,1.11427013,96694.0,96693.0,0.03]
[1740231289610,1.22047013,96694.0,96693.0,0.03]
[1740231290204,1.11427013,96694.0,96693.0,0.03]
[1740231293408,1.11427013,96694.0,96693.0,0.00615439]
[1740231295007,1.22123013,96694.0,96693.0,0.00615439]
[1740231296218,1.22118861,96694.0,96693.0,0.00615439]
[1740231297113,0.2068859,96689.0,96688.0,0.031]
[1740231297309,0.2168859,96689.0,96688.0,0.031]
[1740231299408,0.45281397,96689.0,96688.0,0.031]
[1740231302611,0.26718333,96689.0,96688.0,0.031]
[1740231303315,0.27756364,96689.0,96688.0,0.031]
[1740231305715,0.27756364,96689.0,96687.0,0.033]
[1740231305716,0.07067774,96689.0,96687.0,0.033]
[1740231305920,0.2168881,96688.0,96687.0,0.033]
[1740231310016,0.206918,96674.0,96673.0,0.0625]
[1740231310315,0.216918,96674.0,96673.0,0.0625]
[1740231310522,1.716918,96674.0,96673.0,0.0625]
[1740231310825,1.716918,96674.0,96673.0,0.2694202]
[1740231311030,0.216918,96674.0,96673.0,0.0625]
[1740231311333,0.216918,96674.0,96673.0,0.2694202]
[1740231312218,0.217918,96674.0,96673.0,0.2694202]
[1740231312620,0.26821543,96674.0,96673.0,0.2694202]
[1740231312827,0.26921543,96674.0,96673.0,0.2694202]
[1740231313827,0.05229743,96674.0,96673.0,0.2694202]
[1740231314021,0.25921543,96674.0,96673.0,0.2694202]
[1740231314522,0.05229743,96674.0,96673.0,0.2694202]
[1740231314724,0.00239743,96674.0,96673.0,0.2794202]
[1740231314923,0.00015516,96683.0,96673.0,0.0725]
[1740231315129,0.0517256,96682.0,96681.0,0.2069009]
[1740231315519,0.2586417,96677.0,96676.0,0.2069123]
[1740231315719,0.00015516,96683.0,96676.0,0.0617281]
[1740231315922,0.01,96677.0,96676.0,0.2686419]
[1740231316133,0.00215516,96683.0,96676.0,0.0617281]
[1740231316331,0.00215516,96683.0,96681.0,0.2586266]
[1740231316332,0.0517255,96682.0,96681.0,0.2586266]
[1740231316631,0.23733445,96682.0,96681.0,0.2586266]
[1740231317627,0.39250985,96682.0,96681.0,0.2586266]
[1740231318026,0.18560895,96682.0,96681.0,0.2586266]
[1740231318224,0.40350985,96682.0,96681.0,0.2596266]
[1740231318429,0.40450985,96682.0,96681.0,0.2606266]
[1740231318630,0.39450985,96682.0,96681.0,0.2606266]
[1740231318929,0.19760895,96682.0,96681.0,0.2606266]
[1740231319232,0.40450985,96682.0,96681.0,0.2606266]
[1740231320432,0.19760895,96682.0,96681.0,0.2606266]
[1740231320635,0.166656,96682.0,96681.0,0.2606266]
[1740231320835,0.156656,96682.0,96681.0,0.2606266]
[1740231321235,0.166656,96682.0,96681.0,0.2606266]
[1740231321535,0.156656,96682.0,96681.0,0.2706266]
[1740231322738,0.166656,96682.0,96681.0,0.2706266]
[1740231324321,0.012,96682.0,96681.0,0.2706266]
[1740231327641,0.002,96682.0,96681.0,0.2706266]
[1740231328026,0.012,96682.0,96681.0,0.2706266]
[1740231328228,0.002,96682.0,96681.0,0.2706266]
[1740231330231,0.002,96682.0,96681.0,0.3783466]
[1740231331848,0.39249805,96688.0,96681.0,0.5322457]
[1740231331849,0.18560895,96688.0,96681.0,0.5322457]
[1740231332138,0.01,96688.0,96687.0,0.2168902]
[1740231333035,0.011,96688.0,96687.0,0.2168902]
[1740231333332,0.011,96688.0,96687.0,0.22743568]
[1740231333737,0.012,96688.0,96687.0,0.22743568]
[1740231334336,0.002,96688.0,96687.0,0.25873568]
[1740231334537,0.001,96688.0,96687.0,0.25873568]
[1740231334840,0.001,96688.0,96687.0,0.25973568]
[1740231335139,0.0309,96693.0,96687.0,0.10656768]
[1740231335337,0.2377792,96693.0,96692.0,0.2068795]
[1740231337041,0.2377792,96693.0,96692.0,0.2088795]
[1740231337542,0.2477792,96693.0,96692.0,0.2088795]
[1740231340437,0.97478074,96701.0,96692.0,0.002]
[1740231340644,0.03,96698.0,96696.0,0.206871]
[1740231340845,0.03,96698.0,96696.0,0.238171]
[1740231341147,0.15454073,96701.0,96696.0,0.238171]
[1740231341446,0.2068653,96699.0,96696.0,0.378611]
[1740231341644,0.15454073,96701.0,96696.0,0.378571]
[1740231341832,0.2068625,96700.0,96696.0,0.378571]
[1740231342038,0.01015516,96697.0,96696.0,0.378571]
[1740231342542,0.00015516,96697.0,96696.0,0.378571]
[1740231342747,0.20702396,96697.0,96696.0,0.378571]
[1740231342937,0.20702396,96697.0,96696.0,0.345371]
[1740231344232,0.20702396,96697.0,96696.0,0.346371]
[1740231344438,0.20702396,96697.0,96696.0,0.346251]
[1740231344945,0.00015516,96697.0,96696.0,0.346251]
[1740231345245,0.20702396,96697.0,96696.0,0.346251]
[1740231345435,0.00015516,96697.0,96696.0,0.347251]
[1740231345636,0.00015516,96697.0,96696.0,0.357251]
[1740231346037,0.00015516,96697.0,96696.0,0.356251]
[1740231350550,0.00015516,96697.0,96696.0,0.575851]
[1740231351344,0.02,96704.0,96696.0,0.36898]
[1740231351655,0.02,96704.0,96703.0,0.577656]
[1740231352157,0.02,96704.0,96703.0,0.641956]
[1740231353354,0.022,96704.0,96703.0,0.641956]
[1740231353745,0.00015516,96713.0,96706.0,0.0517123]
[1740231353947,0.00015516,96713.0,96712.0,0.5776367]
[1740231354348,0.00015516,96713.0,96712.0,0.6097367]
[1740231354750,0.00015516,96713.0,96712.0,0.6425367]
[1740231354954,0.00415516,96713.0,96712.0,0.6425367]
[1740231355856,0.00815516,96713.0,96712.0,0.6425367]
[1740231356254,0.00815516,96713.0,96712.0,0.65296561]
[1740231356456,0.00615516,96713.0,96712.0,0.65296561]
[1740231356757,0.01015516,96713.0,96712.0,0.65296561]
[1740231357059,0.01015516,96713.0,96712.0,0.58806561]
[1740231358357,0.04215516,96713.0,96712.0,0.58806561]
[1740231363757,0.04215516,96713.0,96712.0,0.62116561]
[1740231371659,0.04215516,96713.0,96712.0,0.72692561]
[1740231373569,0.01015516,96713.0,96712.0,0.72692561]
[1740231373765,0.04015516,96713.0,96712.0,0.72692561]
[1740231376664,0.20624293,96725.0,96712.0,0.52008891]
[1740231376865,0.3225208,96723.0,96722.0,0.2068132]
[1740231378562,0.064,96723.0,96722.0,0.2168132]
[1740231379065,0.071,96723.0,96722.0,0.2178132]
[1740231379269,0.078,96723.0,96722.0,0.2188132]
[1740231379469,0.0456,96723.0,96722.0,0.2188132]
[1740231379673,0.0456,96723.0,96722.0,0.2515132]
[1740231380059,0.2524132,96723.0,96722.0,0.2515132]
[1740231380566,0.0456,96723.0,96722.0,0.2515132]
[1740231380970,0.2524132,96723.0,96722.0,0.2088132]
[1740231381175,0.2831132,96723.0,96722.0,0.2088132]
[1740231383072,0.2831132,96723.0,96722.0,0.3144932]
[1740231383474,0.2831132,96723.0,96722.0,0.2088132]
[1740231383781,0.2831132,96723.0,96722.0,0.002]
[1740231384476,0.2831132,96723.0,96722.0,0.2088154]
[1740231385174,0.2831132,96723.0,96722.0,0.002]
[1740231385367,0.29361574,96723.0,96722.0,0.002]
[1740231385868,0.2068261,96717.0,96716.0,0.18595756]
[1740231386069,0.2068367,96712.0,96711.0,0.19794516]
[1740231386280,0.2068367,96712.0,96711.0,0.14804516]
[1740231386472,0.2068367,96712.0,96711.0,0.13604516]
[1740231386473,1.7068367,96712.0,96711.0,0.13604516]
[1740231386772,1.8123567,96712.0,96711.0,0.13604516]
[1740231387172,1.8223567,96712.0,96711.0,0.12664516]
[1740231388582,1.7198367,96712.0,96711.0,0.12664516]
[1740231388763,1.99722333,96712.0,96711.0,0.001]
[1740231390176,0.49722333,96712.0,96711.0,0.001]
[1740231391476,0.85802333,96712.0,96711.0,0.001]
[1740231392791,0.7413739,96712.0,96711.0,0.001]
[1740231402885,2.2413739,96712.0,96711.0,0.001]
[1740231403388,2.6021739,96712.0,96711.0,0.001]
[1740231406500,2.6021739,96712.0,96711.0,0.00019366]
[1740231408292,0.2068603,96701.0,96700.0,0.00015516]
[1740231408494,0.5776603,96701.0,96700.0,0.00015516]
[1740231408897,0.5776603,96701.0,96700.0,0.20701756]
[1740231410493,0.5786603,96701.0,96700.0,0.20701756]
[1740231412104,0.5686603,96701.0,96700.0,0.20701756]
[1740231412305,0.5786603,96701.0,96700.0,0.20701756]
[1740231414005,0.6289575,96701.0,96700.0,0.20701756]
[1740231416712,0.6189575,96701.0,96700.0,0.20701756]
[1740231417005,0.4120972,96701.0,96700.0,0.20701756]
[1740231417510,0.3122972,96701.0,96700.0,0.21701756]
[1740231417708,0.2623972,96701.0,96700.0,0.21701756]
[1740231418705,0.0512972,96701.0,96700.0,0.21701756]
[1740231418902,0.2581575,96701.0,96700.0,0.21701756]
[1740231420999,0.2078603,96701.0,96700.0,0.21701756]
[1740231423999,0.2078603,96701.0,96700.0,0.20701756]
[1740231424609,0.2078603,96701.0,96700.0,0.21701756]
[1740231425818,0.2078603,96701.0,96700.0,0.20701756]
[1740231426004,0.2078603,96701.0,96700.0,0.21701756]
[1740231426705,0.2178603,96701.0,96700.0,0.00015516]
[1740231426913,0.2178603,96701.0,96700.0,0.20701756]
[1740231427114,0.2178603,96701.0,96700.0,0.00015516]
[1740231427609,0.5786603,96701.0,96700.0,0.00015516]
[1740231427810,2.0786603,96701.0,96700.0,6e-08]
[1740231428406,2.08904578,96701.0,96700.0,6e-08]
[1740231430320,2.42718492,96701.0,96700.0,6e-08]
[1740231430516,0.2068774,96693.0,96687.0,0.0329]
[1740231430821,0.6824774,96693.0,96687.0,0.0329]
[1740231431418,0.7136774,96693.0,96687.0,0.0329]
[1740231431607,0.6088774,96693.0,96687.0,0.0329]
[1740231431809,0.7135174,96693.0,96687.0,0.0329]
[1740231432011,0.2068881,96688.0,96687.0,0.0329]
[1740231432210,0.2148881,96688.0,96687.0,0.0329]
[1740231432420,0.2128881,96688.0,96687.0,0.0329]
[1740231433314,0.2128881,96688.0,96687.0,0.0369]
[1740231433515,0.2128881,96688.0,96687.0,0.0409]
[1740231434527,0.2128881,96688.0,96687.0,0.008]
[1740231436942,0.44827922,96688.0,96687.0,0.008]
[1740231437643,0.43827922,96688.0,96687.0,0.008]
[1740231438047,0.2586202,96685.0,96684.0,0.2068955]
[1740231438251,0.2068966,96685.0,96684.0,0.2586196]
[1740231438545,0.2168966,96685.0,96684.0,0.2586196]
[1740231438936,0.2068966,96685.0,96684.0,0.2586196]
[1740231439535,0.2068966,96685.0,96684.0,0.2656196]
[1740231439738,0.2068966,96685.0,96684.0,0.2756196]
[1740231440247,0.2168945,96687.0,96686.0,0.2586154]
[1740231442054,0.01,96687.0,96686.0,0.2586154]
[1740231442257,0.2059009,96691.0,96689.0,0.2586052]
[1740231442554,0.4127826,96691.0,96690.0,0.2684838]
[1740231442948,0.4227826,96691.0,96690.0,0.2684838]
[1740231444244,0.2686021,96691.0,96690.0,0.2684838]
[1740231445254,0.2686021,96691.0,96690.0,0.2694838]
[1740231448748,0.2686021,96691.0,96690.0,0.3017838]
[1740231450141,0.2686021,96691.0,96690.0,0.0949]
[1740231450345,0.2686021,96691.0,96690.0,0.0333]
[1740231450746,1.7686021,96691.0,96690.0,0.001]
[1740231452647,1.7686021,96691.0,96690.0,0.001]
[1740231453356,1.8733621,96691.0,96690.0,0.001]
[1740231453652,2.1294021,96691.0,96690.0,0.001]
[1740231453853,2.2342421,96691.0,96690.0,0.001]
[1740231454253,2.2342421,96691.0,96690.0,1e-07]
[1740231454655,2.28454935,96691.0,96690.0,1e-07]
[1740231457760,0.2068966,96684.0,96683.0,0.00015516]
[1740231457961,0.2168966,96684.0,96683.0,0.00015516]
[1740231462550,0.26720385,96684.0,96683.0,0.00015516]
[1740231463564,0.27782449,96684.0,96683.0,6e-08]
[1740231464361,1.77782449,96684.0,96683.0,6e-08]
[1740231465665,1.88262449,96684.0,96683.0,6e-08]
[1740231465856,1.87262449,96684.0,96683.0,6e-08]
[1740231466053,1.88262449,96684.0,96683.0,6e-08]
[1740231466255,1.77782449,96684.0,96683.0,6e-08]
[1740231466463,1.88254449,96684.0,96683.0,6e-08]
[1740231466662,1.88254449,96684.0,96672.0,0.2069223]
[1740231466663,0.0517301,96673.0,96672.0,0.2069223]
[1740231466869,0.6294524,96673.0,96672.0,0.2069223]
[1740231467370,0.2069266,96670.0,96669.0,0.3427859]
[1740231467579,0.2169266,96670.0,96669.0,0.3427859]
[1740231467960,0.2069266,96670.0,96669.0,0.3427859]
[1740231468364,0.2169266,96670.0,96669.0,0.3427859]
[1740231469072,0.2179266,96670.0,96669.0,0.3427859]
[1740231469664,0.2189266,96670.0,96669.0,0.3427859]
[1740231470265,0.2089266,96670.0,96669.0,0.3427859]
[1740231470573,0.2189266,96670.0,96669.0,0.3427859]
[1740231475262,0.2089266,96670.0,96669.0,0.3427859]
[1740231477167,0.2089266,96670.0,96669.0,0.0324]
[1740231477476,0.2089266,96670.0,96669.0,0.2393287]
[1740231477675,0.21916751,96670.0,96669.0,0.0324]
[1740231477870,0.21916751,96670.0,96669.0,0.2393287]
[1740231478175,0.21916751,96670.0,96669.0,0.0324]
[1740231479067,0.22916751,96670.0,96669.0,0.0324]
[1740231479777,0.2069287,96669.0,96668.0,0.0627]
[1740231479975,0.2169287,96669.0,96668.0,0.0319]
[1740231480169,1.5401,96669.0,96661.0,0.0309]
[1740231480372,0.5777437,96662.0,96661.0,0.0635]
[1740231480570,0.6819837,96662.0,96661.0,0.0635]
[1740231480971,2.1819837,96662.0,96661.0,0.0635]
[1740231481780,2.0777437,96662.0,96661.0,0.0635]
[1740231481980,2.0677437,96662.0,96661.0,0.0635]
[1740231482170,2.0697437,96662.0,96661.0,0.0635]
[1740231482370,2.0797437,96662.0,96661.0,0.0635]
[1740231482580,2.0697437,96662.0,96661.0,0.2704459]
[1740231482784,2.0797437,96662.0,96661.0,0.2704459]
[1740231482974,2.0797437,96662.0,96661.0,0.0635]
[1740231483775,0.5797437,96662.0,96661.0,0.0635]
[1740231486174,0.63005662,96662.0,96661.0,0.0635]
[1740231488086,0.26925662,96662.0,96661.0,0.0635]
[1740231488387,0.63005662,96662.0,96661.0,0.0635]
[1740231490883,0.63005662,96662.0,96661.0,0.0326]
[1740231491078,0.63005662,96662.0,96661.0,0.0627]
[1740231492286,0.41311292,96662.0,96661.0,0.2696459]
[1740231492483,0.26925662,96662.0,96661.0,0.2696459]
[1740231492986,0.25925662,96662.0,96661.0,0.2696459]
[1740231493192,0.2189437,96662.0,96661.0,0.2696459]
[1740231500300,0.26925902,96662.0,96661.0,0.2696459]
[1740231501304,0.26925902,96662.0,96661.0,0.27980798]
[1740231501598,0.06231532,96662.0,96661.0,0.27980798]
[1740231502093,0.06231532,96662.0,96661.0,0.64060798]
[1740231502298,0.25925902,96662.0,96661.0,0.64060798]
[1740231502493,0.05231532,96662.0,96661.0,0.64060798]
[1740231502692,0.05231532,96662.0,96661.0,0.65060798]
[1740231502891,0.25925902,96662.0,96661.0,0.65060798]
[1740231503393,1.75925902,96662.0,96661.0,0.65060798]
[1740231503596,1.75925902,96662.0,96661.0,0.75432798]
[1740231504205,1.7089437,96662.0,96661.0,0.75432798]
[1740231507008,1.502,96662.0,96661.0,0.75432798]
[1740231507309,1.7089437,96662.0,96661.0,0.75432798]
[1740231508794,1.502,96662.0,96661.0,0.75432798]
[1740231509403,1.7089437,96662.0,96661.0,0.75432798]
[1740231510899,0.2089437,96662.0,96661.0,0.75432798]
[1740231513399,0.002,96662.0,96661.0,0.75432798]
[1740231513802,0.2089437,96662.0,96661.0,0.75432798]
[1740231514305,0.002,96662.0,96661.0,0.75432798]
[1740231516405,0.2089437,96662.0,96661.0,0.75432798]
[1740231516916,0.002,96662.0,96661.0,0.75432798]
[1740231518409,0.2089437,96662.0,96661.0,0.75432798]
[1740231518905,0.002,96662.0,96661.0,0.75432798]
[1740231526415,0.002,96662.0,96661.0,0.75328798]
[1740231526615,0.002,96662.0,96661.0,0.65060798]
[1740231526920,0.002,96662.0,96661.0,0.75324798]
[1740231531913,0.2089437,96662.0,96661.0,0.75324798]
[1740231533121,0.002,96662.0,96661.0,0.75324798]
[1740231536418,0.002,96662.0,96661.0,0.93911755]
[1740231539628,0.002,96662.0,96661.0,0.75312798]
[1740231542118,0.15428782,96668.0,96661.0,0.54618208]
[1740231542320,0.15428782,96668.0,96667.0,0.216933]
[1740231542830,0.15428782,96668.0,96667.0,0.250033]
[1740231543414,0.15628782,96668.0,96667.0,0.250033]
[1740231543832,0.15528782,96668.0,96667.0,0.250033]
[1740231544022,0.002,96668.0,96667.0,0.250033]
[1740231547928,0.15428782,96676.0,96675.0,0.2069159]
[1740231548132,0.15428782,96676.0,96675.0,0.6314159]
[1740231548731,0.16428782,96676.0,96675.0,0.6314159]
[1740231549426,0.37120162,96676.0,96675.0,0.6314159]
[1740231549619,0.37120162,96676.0,96675.0,0.6324159]
[1740231549831,0.16428782,96676.0,96675.0,0.6324159]
[1740231552226,0.01,96676.0,96675.0,0.6324159]
[1740231552427,0.00015516,96679.0,96675.0,0.4255]
[1740231552638,0.00015516,96679.0,96678.0,0.2069095]
[1740231554328,0.01015516,96679.0,96678.0,0.2069095]
[1740231555023,0.00015516,96679.0,96678.0,0.2169095]
[1740231556025,0.00015516,96679.0,96678.0,0.2199095]
[1740231558137,0.20706246,96679.0,96678.0,0.2199095]
[1740231558624,0.20706246,96679.0,96678.0,0.2189095]
[1740231558831,0.20706246,96679.0,96678.0,0.2199095]
[1740231559026,0.00015516,96679.0,96678.0,0.2199095]
[1740231562040,0.20706246,96679.0,96678.0,0.2199095]
[1740231562929,0.00015516,96679.0,96678.0,0.2199095]
[1740231563436,0.20706246,96679.0,96678.0,0.2199095]
[1740231564439,0.20706246,96679.0,96678.0,0.2099095]
[1740231564628,0.20706246,96679.0,96678.0,0.3117495]
[1740231565434,0.20706246,96679.0,96678.0,0.3217495]
[1740231566540,0.00015516,96679.0,96678.0,0.3217495]